fUST/lending_fUST_20250425
["ID","MTS","AMOUNT","RATE_DAILY","PERIOD"]
[358889589,1745527840112,-500.0,0.00016438,2]
[358889590,1745527840122,-500.0,0.00016438,2]
[358889591,1745527840133,-970.08,0.00016438,2]
[358889592,1745527840142,-744.47,0.00016438,2]
[358889593,1745527840152,-1289.11,0.00016438,2]
[358889594,1745527840161,-500.0,0.00016438,2]
[358889595,1745527840171,-500.0,0.00016438,2]
[358889596,1745527840180,-500.0,0.00016438,2]
[358889597,1745527840190,-500.0,0.00016438,2]
[358889598,1745527840200,-674.45,0.00016438,2]
[358889599,1745527840210,-500.0,0.00016438,2]
[358889600,1745527840220,-500.0,0.00016438,2]
[358889601,1745527840230,-500.73066007,0.00016438,2]
[358889602,1745527840240,-500.0,0.00016438,2]
[358889603,1745527840250,-500.0,0.00016438,2]
[358889604,1745527840261,-529.37,0.00016438,2]
[358889605,1745527840271,-537.25,0.00016438,2]
[358889607,1745527840280,-593.29,0.00016438,2]
[358889609,1745527840289,-500.0,0.00016438,2]
[358889610,1745527840299,-895.39,0.00016438,2]
[358889612,1745527840309,-569.84,0.00016438,2]
[358889614,1745527840319,-525.87971591,0.00016438,2]
[358889616,1745527840328,-624.29,0.00016438,2]
[358889618,1745527840337,-500.0,0.00016438,2]
[358889620,1745527840347,-500.0,0.00016438,2]
[358889622,1745527840356,-656.38,0.00016438,2]
[358889624,1745527840365,-500.0,0.00016438,2]
[358889626,1745527840375,-500.0,0.00016438,2]
[358889628,1745527840384,-500.0,0.00016438,2]
[358889630,1745527840394,-500.0,0.00016438,2]
[358889632,1745527840404,-500.0,0.00016438,2]
[358889634,1745527840413,-690.02,0.00016438,2]
[358889636,1745527840423,-500.0,0.00016438,2]
[358889638,1745527840432,-525.01,0.00016438,2]
[358889640,1745527840442,-500.0,0.00016438,2]
[358889642,1745527840451,-501.31780686,0.00016438,2]
[358889644,1745527840460,-500.0,0.00016438,2]
[358889646,1745527840470,-500.0,0.00016438,2]
[358889648,1745527840480,-500.0,0.00016438,2]
[358889650,1745527840489,-1123.06,0.00016438,2]
[358889652,1745527840499,-500.0,0.00016438,2]
[358889654,1745527840508,-500.0,0.00016438,2]
[358889656,1745527840517,-846.75,0.00016438,2]
[358889658,1745527840526,-500.0,0.00016438,2]
[358889660,1745527840536,-501.62148324,0.00016438,2]
[358889661,1745527840546,-500.0,0.00016438,2]
[358889664,1745527840556,-500.0,0.00016438,2]
[358889666,1745527840567,-504.13450546,0.00016438,2]
[358889668,1745527840576,-662.43,0.00016438,2]
[358889669,1745527840587,-500.0,0.00016438,2]
[358889671,1745527840596,-500.0,0.00016438,2]
[358889673,1745527840605,-500.0,0.00016438,2]
[358889675,1745527840614,-500.0,0.00016438,2]
[358889677,1745527840624,-500.0,0.00016438,2]
[358889679,1745527840635,-500.0,0.00016438,2]
[358889681,1745527840644,-500.0,0.00016438,2]
[358889683,1745527840653,-500.0,0.00016438,2]
[358889685,1745527840662,-500.0,0.00016438,2]
[358889687,1745527840671,-656.37,0.00016438,2]
[358889689,1745527840680,-962.59,0.00016438,2]
[358889691,1745527840689,-500.0,0.00016438,2]
[358889693,1745527840699,-500.0,0.00016438,2]
[358889695,1745527840708,-2846.12,0.00016438,2]
[358889697,1745527840717,-500.0,0.00016438,2]
[358889699,1745527840726,-500.0,0.00016438,2]
[358889701,1745527840735,-500.0,0.00016438,2]
[358889703,1745527840744,-200.95080609,0.00016438,2]
[358889705,1745527840753,-2802.22,0.00016438,2]
[358889706,1745527840762,-602.3823,0.00016438,2]
[358889708,1745527840772,-500.0,0.00016438,2]
[358889710,1745527840781,-500.0,0.00016438,2]
[358889711,1745527840790,-500.0,0.00016438,2]
[358889712,1745527840800,-500.0,0.00016438,2]
[358889713,1745527840810,-500.0,0.00016438,2]
[358889714,1745527840820,-500.0,0.00016438,2]
[358889715,1745527840830,-719.11,0.00016438,2]
[358889716,1745527840839,-500.0,0.00016438,2]
[358889717,1745527840849,-1102.57,0.00016438,2]
[358889718,1745527840860,-1083.2,0.00016438,2]
[358889719,1745527840869,-500.0,0.00016438,2]
[358889720,1745527840880,-500.0,0.00016438,2]
[358889721,1745527840890,-500.0,0.00016438,2]
[358889722,1745527840899,-500.0,0.00016438,2]
[358889723,1745527840909,-500.0,0.00016438,2]
[358889724,1745527840920,-500.0,0.00016438,2]
[358889725,1745527840930,-500.0,0.00016438,2]
[358889726,1745527840939,-2636.59,0.00016438,2]
[358889727,1745527840948,-500.0,0.00016438,2]
[358889728,1745527840960,-500.0,0.00016438,2]
[358889729,1745527840971,-500.0,0.00016438,2]
[358889730,1745527840982,-500.0,0.00016438,2]
[358889731,1745527840992,-500.0,0.00016438,2]
[358889732,1745527841003,-500.0,0.00016438,2]
[358889733,1745527841012,-755.23,0.00016438,2]
[358889734,1745527841021,-500.0,0.00016438,2]
[358889735,1745527841030,-500.0,0.00016438,2]
[358889736,1745527841041,-500.0,0.00016438,2]
[358889737,1745527841052,-500.0,0.00016438,2]
[358889738,1745527841061,-500.0,0.00016438,2]
[358889739,1745527841071,-500.0,0.00016438,2]
[358889740,1745527841080,-500.0,0.00016438,2]
[358889741,1745527841090,-1049.76,0.00016438,2]
[358889742,1745527841099,-500.0,0.00016438,2]
[358889743,1745527841110,-500.0,0.00016438,2]
[358889744,1745527841123,-500.0,0.00016438,2]
[358889745,1745527841132,-541.77,0.00016438,2]
[358889746,1745527841142,-500.0,0.00016438,2]
[358889747,1745527841151,-500.0,0.00016438,2]
[358889748,1745527841161,-500.0,0.00016438,2]
[358889749,1745527841170,-500.0,0.00016438,2]
[358889750,1745527841181,-1028.35,0.00016438,2]
[358889751,1745527841190,-500.0,0.00016438,2]
[358889752,1745527841200,-371.4452492,0.00016438,2]
[358889753,1745527841212,-584.11675788,0.00016438,2]
[358889754,1745527841224,-3138.81,0.00016438,2]
[358889755,1745527841233,-1213.86,0.00016438,2]
[358889756,1745527841244,-500.0,0.00016438,2]
[358889757,1745527841256,-500.68969556,0.00016438,2]
[358889758,1745527841266,-726.98,0.00016438,2]
[358889759,1745527841277,-500.0,0.00016438,2]
[358889760,1745527841286,-500.0,0.00016438,2]
[358889761,1745527841295,-500.0,0.00016438,2]
[358889762,1745527841305,-749.74,0.00016438,2]
[358889763,1745527841314,-2253.57,0.00016438,2]
[358889764,1745527841323,-4258.19,0.00016438,2]
[358889765,1745527841333,-2744.15,0.00016438,2]
[358889766,1745527841343,-500.0,0.00016438,2]
[358889767,1745527841353,-646.32,0.00016438,2]
[358889768,1745527841362,-3749.55,0.00016438,2]
[358889769,1745527841371,-500.0,0.00016438,2]
[358889770,1745527841381,-500.0,0.00016438,2]
[358889771,1745527841390,-587.95,0.00016438,2]
[358889772,1745527841399,-525.11,0.00016438,2]
[358889773,1745527841409,-500.0,0.00016438,2]
[358889774,1745527841419,-500.0,0.00016438,2]
[358889775,1745527841428,-500.0,0.00016438,2]
[358889776,1745527841438,-500.0,0.00016438,2]
[358889777,1745527841447,-753.35,0.00016438,2]
[358889778,1745527841456,-808.74,0.00016438,2]
[358889779,1745527841466,-500.0,0.00016438,2]
[358889780,1745527841475,-5273.86,0.00016438,2]
[358889781,1745527841484,-2947.06,0.00016438,2]
[358889782,1745527841493,-581.18,0.00016438,2]
[358889783,1745527841503,-500.0,0.00016438,2]
[358889784,1745527841511,-780.31,0.00016438,2]
[358889785,1745527841521,-6220.51,0.00016438,2]
[358889786,1745527841530,-500.0,0.00016438,2]
[358889787,1745527841539,-500.0,0.00016438,2]
[358889788,1745527841548,-698.79,0.00016438,2]
[358889789,1745527841557,-500.0,0.00016438,2]
[358889790,1745527841566,-500.0,0.00016438,2]
[358889791,1745527841575,-500.0,0.00016438,2]
[358889792,1745527841585,-500.0,0.00016438,2]
[358889793,1745527841594,-500.0,0.00016438,2]
[358889794,1745527841603,-501.73171305,0.00016438,2]
[358889795,1745527841612,-2119.14,0.00016438,2]
[358889796,1745527841622,-417.55234371,0.00016438,2]
[358889797,1745527841632,-531.12,0.00016438,2]
[358889798,1745527841643,-195.17968762,0.00016438,2]
[358889799,1745527841654,-500.0,0.00016438,2]
[358889800,1745527841663,-553.11,0.00016438,2]
[358889801,1745527841673,-500.0,0.00016438,2]
[358889802,1745527841683,-500.0,0.00016438,2]
[358889803,1745527841692,-1259.94,0.00016438,2]
[358889804,1745527841701,-500.0,0.00016438,2]
[358889805,1745527841710,-500.0,0.00016438,2]
[358889806,1745527841719,-555.35,0.00016438,2]
[358889807,1745527841728,-568.68,0.00016438,2]
[358889808,1745527841737,-517.30444048,0.00016438,2]
[358889809,1745527841746,-1096.99,0.00016438,2]
[358889810,1745527841755,-500.0,0.00016438,2]
[358889811,1745527841764,-2894.46,0.00016438,2]
[358889812,1745527841773,-912.74,0.00016438,2]
[358889813,1745527841782,-500.0,0.00016438,2]
[358889814,1745527841791,-1055.64,0.00016438,2]
[358889815,1745527841800,-500.0,0.00016438,2]
[358889816,1745527841809,-317.27692035,0.00016438,2]
[358889817,1745527841818,-728.57,0.00016438,2]
[358889818,1745527841827,-503.29216947,0.00016438,2]
[358889819,1745527841836,-500.0,0.00016438,2]
[358889820,1745527841845,-500.0,0.00016438,2]
[358889821,1745527841854,-500.0,0.00016438,2]
[358889822,1745527841863,-500.0,0.00016438,2]
[358889823,1745527841872,-500.0,0.00016438,2]
[358889824,1745527841881,-5740.36,0.00016438,2]
[358889825,1745527841890,-500.0,0.00016438,2]
[358889826,1745527841899,-420.0,0.0001648,2]
[358889827,1745527841908,-420.0,0.0001648,2]
[358889828,1745527841917,-149025.99187303,0.00016612,2]
[358889829,1745527842260,-3095.53468668,0.00016612,2]
[358889830,1745527842272,-820.89,0.00016612,2]
[358889831,1745527842353,-217057.58344029,0.00016612,2]
[358889832,1745527842362,-500.0,0.00016673,2]
[358889833,1745527842371,-376.82443631,0.00016673,2]
[358889834,1745527842381,-501.08858255,0.00016673,2]
[358889835,1745527842390,-340.44994791,0.00016673,2]
[358889836,1745527842400,-500.0,0.00016673,2]
[358889837,1745527842409,-500.0,0.00016673,2]
[358889838,1745527842419,-314.19083097,0.00016673,2]
[358889839,1745527842429,-500.0,0.00016673,2]
[358889840,1745527842439,-500.0,0.00016673,2]
[358889841,1745527842448,-500.0,0.00016673,2]
[358889842,1745527842458,-310.59678541,0.00016673,2]
[358889843,1745527842468,-500.0,0.00016673,2]
[358889844,1745527842477,-500.0,0.00016673,2]
[358889845,1745527842487,-500.0,0.00016673,2]
[358889846,1745527842496,-500.0,0.00016673,2]
[358889847,1745527842506,-500.0,0.00016673,2]
[358889848,1745527842516,-500.0,0.00016673,2]
[358889849,1745527842526,-623.2087604,0.00016673,2]
[358889850,1745527842535,-500.0,0.00016673,2]
[358889851,1745527842546,-500.0,0.00016673,2]
[358889852,1745527842556,-227.94241653,0.00016673,2]
[358889853,1745527842565,-500.0,0.00016673,2]
[358889854,1745527842577,-222.84792796,0.00016673,2]
[358889855,1745527842587,-500.0,0.00016673,2]
[358889856,1745527842597,-500.0,0.00016673,2]
[358889857,1745527842607,-500.0,0.00016673,2]
[358889858,1745527842616,-500.0,0.00016673,2]
[358889859,1745527842627,-500.0,0.00016673,2]
[358889860,1745527842636,-500.69757125,0.00016673,2]
[358889861,1745527842646,-501.49732179,0.00016673,2]
[358889862,1745527842655,-500.0,0.00016673,2]
[358889863,1745527842664,-540.59194522,0.00016673,2]
[358889864,1745527842674,-500.0,0.00016673,2]
[358889865,1745527842684,-500.0,0.00016673,2]
[358889866,1745527842694,-501.2635384,0.00016712,2]
[358889867,1745527842703,-500.0,0.00016712,2]
[358889868,1745527842713,-500.0,0.00016712,2]
[358889869,1745527842723,-500.0,0.00016712,2]
[358889870,1745527842733,-500.0,0.00016712,2]
[358889871,1745527842742,-500.0,0.00016712,2]
[358889873,1745527842751,-500.0,0.00016712,2]
[358889875,1745527842761,-500.0,0.00016712,2]
[358889876,1745527842771,-500.0,0.00016712,2]
[358889877,1745527842780,-500.0,0.00016712,2]
[358889878,1745527842790,-500.0,0.00016712,2]
[358889879,1745527842799,-988.27,0.00016712,2]
[358889880,1745527842811,-500.0,0.00016712,2]
[358889881,1745527842821,-502.24,0.00016712,2]
[358889882,1745527842830,-500.0,0.00016712,2]
[358889883,1745527842840,-908.36,0.00016712,2]
[358889884,1745527842850,-662.16,0.00016712,2]
[358889885,1745527842859,-500.0,0.00016712,2]
[358889887,1745527842869,-500.0,0.00016712,2]
[358889888,1745527842878,-500.0,0.00016712,2]
[358889889,1745527842887,-500.0,0.00016712,2]
[358889890,1745527842896,-500.0,0.00016712,2]
[358889891,1745527842906,-1961.05,0.00016712,2]
[358889892,1745527842915,-800.04,0.00016712,2]
[358889894,1745527842925,-500.0,0.00016712,2]
[358889895,1745527842934,-534.62,0.00016712,2]
[358889897,1745527842944,-500.0,0.00016712,2]
[358889898,1745527842953,-515.33,0.00016712,2]
[358889900,1745527842962,-500.0,0.00016712,2]
[358889901,1745527842972,-500.0,0.00016712,2]
[358889903,1745527842981,-276.32047055,0.00016712,2]
[358889905,1745527842991,-500.0,0.00016712,2]
[358889906,1745527843001,-568.01,0.00016712,2]
[358889908,1745527843010,-500.0,0.00016712,2]
[358889909,1745527843020,-1211.82,0.00016712,2]
[358889910,1745527843029,-1128.15,0.00016712,2]
[358889911,1745527843040,-516.25,0.00016712,2]
[358889912,1745527843055,-512.99913937,0.00016712,2]
[358889913,1745527843064,-2516.91,0.00016712,2]
[358889914,1745527843074,-500.0,0.00016712,2]
[358889915,1745527843084,-1060.41,0.00016712,2]
[358889916,1745527843094,-500.0,0.00016712,2]
[358889917,1745527843103,-500.0,0.00016712,2]
[358889918,1745527843112,-389.97825734,0.00016712,2]
[358889919,1745527843123,-382.36,0.00016712,2]
[358889920,1745527843132,-89.98630989,0.00016712,2]
[358889921,1745527843145,-410.01369011,0.00016712,2]
[358889922,1745527843156,-741.26,0.00016712,2]
[358889923,1745527843166,-500.0,0.00016712,2]
[358889924,1745527843175,-500.0,0.00016712,2]
[358889925,1745527843184,-865.34,0.00016712,2]
[358889926,1745527843194,-118.17173577,0.00016712,2]
[358889928,1745527843206,-1031.21826423,0.00016712,2]
[358889929,1745527843216,-546.66,0.00016712,2]
[358889931,1745527843225,-86.75779179,0.00016712,2]
[358889949,1745527843660,-413.24220821,0.00016712,2]
[358889951,1745527843670,-500.0,0.00016712,2]
[358889952,1745527843680,-509.43779179,0.00016712,2]
[358889953,1745527843766,-460.64220821,0.00016712,2]
[358889954,1745527843776,-362.90278879,0.00016712,2]
[358889955,1745527844191,-416.49721584,0.00016438,2]
[358889956,1745527844203,-83.50278416,0.00016438,2]
[358889957,1745527844214,-500.0,0.00016438,2]
[358889958,1745527844224,-381.56721121,0.00016712,2]
[358889959,1745527844234,-1289.11,0.00016712,2]
[358889960,1745527844244,-500.0,0.00016712,2]
[358889961,1745527844254,-572.53096279,0.00016712,2]
[358889962,1745527844265,-500.0,0.00016712,2]
[358889963,1745527844275,-500.0,0.00016712,2]
[358889964,1745527844284,-674.45,0.00016712,2]
[358889965,1745527844294,-500.0,0.00016712,2]
[358889966,1745527844304,-500.0,0.00016712,2]
[358889967,1745527844315,-500.0,0.00016712,2]
[358889968,1745527844326,-500.0,0.00016712,2]
[358889969,1745527844335,-529.37,0.00016712,2]
[358889970,1745527844345,-537.25,0.00016712,2]
[358889971,1745527844355,-593.29,0.00016712,2]
[358889972,1745527844365,-500.0,0.00016712,2]
[358889973,1745527844375,-895.39,0.00016712,2]
[358889974,1745527844386,-569.84,0.00016712,2]
[358889975,1745527844396,-624.29,0.00016712,2]
[358889976,1745527844406,-500.0,0.00016712,2]
[358889977,1745527844416,-656.38,0.00016712,2]
[358889978,1745527844426,-500.0,0.00016712,2]
[358889979,1745527844436,-500.0,0.00016712,2]
[358889980,1745527844446,-500.0,0.00016712,2]
[358889981,1745527844457,-500.0,0.00016712,2]
[358889982,1745527844467,-500.0,0.00016712,2]
[358889983,1745527844477,-690.02,0.00016712,2]
[358889984,1745527844487,-500.0,0.00016712,2]
[358889985,1745527844498,-525.01,0.00016712,2]
[358889986,1745527844509,-500.0,0.00016712,2]
[358889987,1745527844522,-582.0637556,0.00016712,2]
[358889988,1745527844533,-500.0,0.00016712,2]
[358889989,1745527844543,-500.0,0.00016712,2]
[358889990,1745527844552,-1123.06,0.00016712,2]
[358889991,1745527844561,-240.7008832,0.00016712,2]
[358889992,1745527844576,-259.2991168,0.00016712,2]
[358889993,1745527844586,-500.0,0.00016712,2]
[358889994,1745527844596,-115.9597802,0.00016712,2]
[358889995,1745527844609,-730.7902198,0.00016712,2]
[358889996,1745527844619,-662.43,0.00016712,2]
[358889997,1745527844630,-126.99887265,0.00016712,2]
[358889998,1745527844649,-500.0,0.00016438,2]
[358889999,1745527844660,-373.00112735,0.00016712,2]
[358890000,1745527844670,-500.0,0.00016712,2]
[358890001,1745527844681,-656.37,0.00016712,2]
[358890002,1745527844691,-150.24577925,0.00016712,2]
[358890003,1745527844708,-812.34422075,0.00016712,2]
[358890004,1745527844718,-500.0,0.00016712,2]
[358890005,1745527844728,-2846.12,0.00016712,2]
[358890006,1745527844738,-500.0,0.00016712,2]
[358890007,1745527844749,-2802.22,0.00016712,2]
[358890008,1745527844760,-377.28574707,0.00016712,2]
[358890009,1745527844770,-500.0,0.00016712,2]
[358890010,1745527844780,-500.0,0.00016712,2]
[358890011,1745527844790,-500.0,0.00016712,2]
[358890012,1745527844800,-719.11,0.00016712,2]
[358890013,1745527844810,-1102.57,0.00016712,2]
[358890014,1745527844820,-1083.2,0.00016712,2]
[358890015,1745527844829,-500.0,0.00016712,2]
[358890016,1745527844839,-500.0,0.00016712,2]
[358890017,1745527844850,-500.0,0.00016712,2]
[358890018,1745527844859,-500.0,0.00016712,2]
[358890019,1745527844869,-2636.59,0.00016712,2]
[358890020,1745527844879,-500.0,0.00016712,2]
[358890021,1745527844889,-500.0,0.00016712,2]
[358890022,1745527844899,-500.0,0.00016712,2]
[358890023,1745527844909,-500.0,0.00016712,2]
[358890024,1745527844919,-755.23,0.00016712,2]
[358890025,1745527844930,-500.0,0.00016712,2]
[358890026,1745527844940,-500.0,0.00016712,2]
[358890027,1745527844951,-500.0,0.00016712,2]
[358890028,1745527844961,-1049.76,0.00016712,2]
[358890029,1745527844971,-291.17926316,0.00016712,2]
[358890030,1745527844982,-500.0,0.00016712,2]
[358890031,1745527844993,-500.0,0.00016712,2]
[358890032,1745527845004,-541.77,0.00016712,2]
[358890033,1745527845015,-500.0,0.00016712,2]
[358890034,1745527845025,-500.0,0.00016712,2]
[358890035,1745527845035,-602.47023159,0.00016712,2]
[358890036,1745527845048,-1028.35,0.00016712,2]
[358890037,1745527845058,-3138.81,0.00016712,2]
[358890038,1745527845068,-1213.86,0.00016712,2]
[358890039,1745527845078,-500.0,0.00016712,2]
[358890040,1745527845089,-726.98,0.00016712,2]
[358890041,1745527845100,-500.0,0.00016712,2]
[358890042,1745527845110,-500.0,0.00016712,2]
[358890043,1745527845123,-500.0,0.00016712,2]
[358890044,1745527845134,-749.74,0.00016712,2]
[358890045,1745527845337,-2253.57,0.00016712,2]
[358890046,1745527845347,-4258.19,0.00016712,2]
[358890047,1745527845358,-2744.15,0.00016712,2]
[358890048,1745527845367,-500.0,0.00016712,2]
[358890049,1745527845377,-646.32,0.00016712,2]
[358890050,1745527845387,-3749.55,0.00016712,2]
[358890051,1745527845397,-500.0,0.00016712,2]
[358890052,1745527845417,-500.0,0.00016712,2]
[358890053,1745527845429,-587.95,0.00016712,2]
[358890054,1745527845440,-525.11,0.00016712,2]
[358890055,1745527845450,-500.0,0.00016712,2]
[358890056,1745527845461,-500.0,0.00016712,2]
[358890057,1745527845471,-500.0,0.00016712,2]
[358890058,1745527845482,-500.0,0.00016712,2]
[358890059,1745527845492,-753.35,0.00016712,2]
[358890060,1745527845503,-808.74,0.00016712,2]
[358890061,1745527845513,-5273.86,0.00016712,2]
[358890062,1745527845524,-2947.06,0.00016712,2]
[358890063,1745527845534,-581.18,0.00016712,2]
[358890064,1745527845545,-780.31,0.00016712,2]
[358890065,1745527845556,-6220.51,0.00016712,2]
[358890066,1745527845567,-500.0,0.00016712,2]
[358890067,1745527845578,-698.79,0.00016712,2]
[358890068,1745527845588,-2119.14,0.00016712,2]
[358890069,1745527845599,-531.12,0.00016712,2]
[358890070,1745527845610,-553.11,0.00016712,2]
[358890071,1745527845620,-1259.94,0.00016712,2]
[358890072,1745527845630,-500.0,0.00016712,2]
[358890073,1745527845640,-555.35,0.00016712,2]
[358890074,1745527845650,-568.68,0.00016712,2]
[358890075,1745527845660,-1096.99,0.00016712,2]
[358890076,1745527845671,-500.0,0.00016712,2]
[358890077,1745527845681,-2894.46,0.00016712,2]
[358890078,1745527845691,-912.74,0.00016712,2]
[358890079,1745527845701,-1055.64,0.00016712,2]
[358890080,1745527845711,-728.57,0.00016712,2]
[358890081,1745527845723,-500.0,0.00016712,2]
[358890082,1745527845733,-500.0,0.00016712,2]
[358890083,1745527845743,-500.0,0.00016712,2]
[358890084,1745527845754,-5740.36,0.00016712,2]
[358890085,1745527845765,-153.0,0.0001674,2]
[358890086,1745527845775,-153.0,0.0001674,2]
[358890087,1745527845787,-153.0,0.0001674,2]
[358890088,1745527845796,-153.0,0.0001674,2]
[358890089,1745527845806,-207.4,0.00016856,2]
[358890091,1745527845816,-2958.4681267,0.00016889,2]
[358890092,1745527845826,-500.0,0.00016986,2]
[358890093,1745527845836,-604.88222949,0.00016986,2]
[358890094,1745527845846,-500.0,0.00016986,2]
[358890095,1745527845857,-500.0,0.00016986,2]
[358890096,1745527845867,-500.0,0.00016986,2]
[358890097,1745527845879,-500.0,0.00016986,2]
[358890098,1745527845890,-500.0,0.00016986,2]
[358890099,1745527845902,-500.0,0.00016986,2]
[358890100,1745527845913,-500.0,0.00016986,2]
[358890101,1745527845924,-988.27,0.00016986,2]
[358890102,1745527845935,-500.0,0.00016986,2]
[358890104,1745527845945,-502.24,0.00016986,2]
[358890106,1745527845956,-500.0,0.00016986,2]
[358890107,1745527845965,-908.36,0.00016986,2]
[358890108,1745527845975,-662.16,0.00016986,2]
[358890109,1745527845986,-500.0,0.00016986,2]
[358890110,1745527845995,-500.0,0.00016986,2]
[358890111,1745527846006,-500.0,0.00016986,2]
[358890112,1745527846021,-500.0,0.00016986,2]
[358890113,1745527846030,-500.0,0.00016986,2]
[358890114,1745527846043,-1961.05,0.00016986,2]
[358890115,1745527846053,-800.04,0.00016986,2]
[358890116,1745527846063,-500.0,0.00016986,2]
[358890117,1745527846073,-500.0,0.00016986,2]
[358890118,1745527846085,-515.33,0.00016986,2]
[358890119,1745527846096,-500.0,0.00016986,2]
[358890120,1745527846106,-500.0,0.00016986,2]
[358890122,1745527846118,-500.0,0.00016986,2]
[358890124,1745527846128,-568.01,0.00016986,2]
[358890125,1745527846138,-500.0,0.00016986,2]
[358890126,1745527846148,-1211.82,0.00016986,2]
[358890127,1745527846158,-1128.15,0.00016986,2]
[358890128,1745527846170,-516.25,0.00016986,2]
[358890129,1745527846179,-2516.91,0.00016986,2]
[358890130,1745527846189,-500.0,0.00016986,2]
[358890131,1745527846199,-1060.41,0.00016986,2]
[358890132,1745527846209,-500.0,0.00016986,2]
[358890133,1745527846220,-500.0,0.00016986,2]
[358890135,1745527846230,-151.0,0.00016986,2]
[358890136,1745527846240,-500.0,0.00016986,2]
[358890137,1745527846250,-500.0,0.00016986,2]
[358890138,1745527846261,-741.26,0.00016986,2]
[358890139,1745527846271,-500.0,0.00016986,2]
[358890140,1745527846282,-865.34,0.00016986,2]
[358890141,1745527846292,-1149.39,0.00016986,2]
[358890142,1745527846302,-546.66,0.00016986,2]
[358890143,1745527846312,-500.0,0.00016986,2]
[358890144,1745527846322,-970.08,0.00016986,2]
[358890146,1745527846332,-744.47,0.00016986,2]
[358890148,1745527846342,-1289.11,0.00016986,2]
[358890149,1745527846352,-500.0,0.00016986,2]
[358890150,1745527846362,-500.0,0.00016986,2]
[358890151,1745527846372,-500.0,0.00016986,2]
[358890152,1745527846382,-674.45,0.00016986,2]
[358890153,1745527846393,-304.25917375,0.00016986,2]
[358890154,1745527846403,-500.0,0.00016986,2]
[358890155,1745527846414,-500.0,0.00016986,2]
[358890156,1745527846423,-500.0,0.00016986,2]
[358890157,1745527846434,-529.37,0.00016986,2]
[358890158,1745527846443,-537.25,0.00016986,2]
[358890159,1745527846454,-593.29,0.00016986,2]
[358890160,1745527846465,-500.0,0.00016986,2]
[358890161,1745527846476,-895.39,0.00016986,2]
[358890162,1745527846486,-569.84,0.00016986,2]
[358890163,1745527846496,-151.0,0.00016986,2]
[358890164,1745527846506,-624.29,0.00016986,2]
[358890165,1745527846516,-500.0,0.00016986,2]
[358890166,1745527846525,-656.38,0.00016986,2]
[358890167,1745527846535,-500.0,0.00016986,2]
[358890168,1745527846545,-500.0,0.00016986,2]
[358890169,1745527846555,-500.0,0.00016986,2]
[358890170,1745527846564,-500.0,0.00016986,2]
[358890171,1745527846573,-500.0,0.00016986,2]
[358890172,1745527846583,-690.02,0.00016986,2]
[358890173,1745527846593,-500.0,0.00016986,2]
[358890174,1745527846602,-525.01,0.00016986,2]
[358890175,1745527846612,-151.0,0.00016986,2]
[358890176,1745527846621,-151.0,0.00016986,2]